bitfinex/quotes_ETHUSD_20250123
["timestamp","ask_amount","ask_price","bid_price","bid_amount"]
[1737657570357,3.0718,3255.5,3255.4,0.05846361]
[1737657571186,3.0717,3255.6,3255.4,0.05846361]
[1737657572694,6.14341,3255.6,3255.4,0.05846361]
[1737657572994,3.0717,3255.6,3255.4,0.05846361]
[1737657573195,3.07172,3255.5,3255.4,0.05846361]
[1737657573510,3.07194,3255.3,3255.0,0.7545]
[1737657573689,3.07183,3255.4,3255.0,0.7545]
[1737657573889,3.07183,3255.4,3255.1,0.05891883]
[1737657575280,6.14352,3255.5,3255.1,0.05891883]
[1737657575479,3.07139,3255.9,3255.1,0.44748671]
[1737657575815,3.07139,3255.9,3255.3,3.07186]
[1737657575968,6.74505602,3255.9,3255.3,3.07186]
[1737657576170,6.74505602,3255.9,3255.4,0.05883769]
[1737657576371,3.07148,3255.8,3255.4,0.05883769]
[1737657576810,3.07148,3255.8,3255.2,3.07198]
[1737657577016,3.07148,3255.8,3255.5,0.05879782]
[1737657577201,3.07148,3255.8,3255.2,3.07198]
[1737657577430,3.07148,3255.8,3255.6,0.05875795]
[1737657577585,3.07148,3255.8,3255.2,3.07198]
[1737657578110,3.07148,3255.8,3255.4,0.8078]
[1737657578478,3.07148,3255.8,3255.5,0.05879782]
[1737657582115,6.07129,3256.0,3255.5,0.05879782]
[1737657582423,3.07111,3256.2,3255.6,3.07162]
[1737657582604,3.69506409,3256.3,3255.8,0.7755]
[1737657582914,3.07125,3256.0,3255.9,0.05882646]
[1737657583217,3.10945316,3256.2,3255.9,0.05882646]
[1737657583374,3.07106,3256.2,3255.9,0.05882646]
[1737657583578,3.07117,3256.1,3255.9,0.05882646]
[1737657583775,3.07125,3256.0,3255.9,0.05882646]
[1737657584494,3.10964315,3256.0,3255.9,0.05882646]
[1737657584691,3.07125,3256.0,3255.9,0.05882646]
[1737657584897,3.07141,3255.9,3255.3,3.88398]
[1737657585097,3.07125,3256.0,3255.9,0.05882646]
[1737657585283,3.07125,3256.0,3255.3,0.8121]
[1737657585486,3.07146,3255.8,3255.3,3.88401]
[1737657586425,3.07125,3256.0,3255.3,3.88401]
[1737657586631,3.07125,3256.0,3255.5,3.07172]
[1737657587521,3.07125,3256.0,3255.3,3.88401]
[1737657587820,3.07125,3256.0,3255.4,3.07179]
[1737657588321,3.07109,3256.2,3255.5,3.13068592]
[1737657588524,0.62408409,3256.3,3255.9,3.07129]
[1737657588738,3.0709,3256.4,3256.0,0.7785]
[1737657588944,3.0709,3256.4,3256.0,0.83723102]
[1737657589305,3.69775274,3256.4,3256.0,0.83723102]
[1737657589848,3.07099,3256.3,3256.0,0.83723102]
[1737657590342,3.07106,3256.2,3256.0,0.83723102]
[1737657590515,3.07115,3256.1,3256.0,0.83723102]
[1737657590841,6.14205,3256.3,3256.0,0.83723102]
[1737657591042,3.07113,3256.2,3256.0,0.05873102]
[1737657591248,3.07115,3256.1,3256.0,0.05873102]
[1737657591440,3.0713,3256.0,3255.5,0.7785]
[1737657591741,3.07135,3255.9,3255.5,0.7785]
[1737657592302,3.07115,3256.1,3254.7,3.0]
[1737657592303,3.07163,3255.6,3255.2,0.8152]
[1737657592535,0.0383982,3255.5,3255.0,3.87434]
[1737657592716,3.07172,3255.5,3255.0,3.87434]
[1737657593443,3.07192,3255.3,3254.7,0.8265]
[1737657593647,3.07192,3255.3,3254.7,1.216401]
[1737657594021,3.07192,3255.3,3254.8,3.07232]
[1737657597615,3.07182,3255.4,3254.9,3.07228]
[1737657598227,3.11017236,3255.5,3254.9,3.07228]
[1737657598431,3.07177,3255.5,3254.9,3.07228]
[1737657598915,0.61560957,3255.6,3255.1,3.07209]
[1737657599118,3.0714,3255.9,3255.4,3.07179]
[1737657599317,3.07145,3255.8,3255.3,3.07182]
[1737657599746,3.0714,3255.9,3255.4,3.88006]
[1737657599940,0.61346677,3256.0,3255.4,0.8083]
[1737657600252,3.07099,3256.3,3255.7,3.07152]
[1737657600454,3.07121,3256.1,3255.5,3.07165]
[1737657600652,0.0383943,3256.0,3255.1,0.8094]
[1737657600863,3.07188,3255.4,3254.8,0.8094]
[1737657601009,3.07188,3255.4,3254.8,3.88173]
[1737657601213,3.07188,3255.4,3254.9,0.05724631]
[1737657601617,3.07191,3255.3,3254.9,0.05724631]
[1737657601819,3.07188,3255.4,3254.8,3.88173]
[1737657602355,3.07211,3255.1,3254.9,0.05724631]
[1737657602559,3.07219,3255.0,3254.9,0.05724631]
[1737657602861,3.07262,3254.6,3254.3,0.7865]
[1737657603021,0.03841084,3254.5,3254.3,0.7865]
[1737657603220,3.07262,3254.6,3254.4,0.05555532]
[1737657604470,3.07266,3254.5,3254.4,0.05555532]
[1737657604633,3.07305,3254.1,3253.6,3.94836217]
[1737657604833,3.07324,3253.9,3253.6,3.94836217]
[1737657605050,3.11157681,3254.0,3253.7,0.05583466]
[1737657605051,0.03841681,3254.0,3253.7,0.05583466]
[1737657605248,3.07327,3253.9,3253.7,0.05583466]
[1737657605439,6.14657,3253.9,3253.7,0.05583466]
[1737657605637,3.07327,3253.9,3253.7,0.05583466]
[1737657606751,3.07344,3253.7,3253.3,0.8303]
[1737657606956,0.03842107,3253.6,3253.3,0.8303]
[1737657607158,0.03842107,3253.6,3253.1,3.07392]
[1737657607524,3.07344,3253.7,3253.0,4.01266217]
[1737657607728,3.07362,3253.5,3253.0,7.08673217]
[1737657607969,3.07352,3253.6,3253.0,7.08674217]
[1737657608173,3.07344,3253.7,3253.0,4.01266217]
[1737657608471,3.03842326,3253.6,3253.0,3.19396217]
[1737657608674,3.07399,3253.1,3253.0,3.19396217]
[1737657609232,8.93784822,3253.1,3253.0,3.19396217]
[1737657609668,2.86385822,3253.1,3251.9,0.766]
[1737657609879,3.0,3252.5,3251.8,0.1657653]
[1737657610070,3.07507,3252.0,3251.8,0.1657653]
[1737657610276,3.07512,3251.9,3251.8,0.1657653]
[1737657610483,3.07512,3251.9,3251.0,3.07596]
[1737657610484,3.07663,3250.3,3250.2,0.62643713]
[1737657610684,3.07663,3250.3,3249.3,1.40999258]
[1737657610685,3.07673,3250.2,3249.3,1.40999258]
[1737657610976,1.09243676,3250.2,3248.6,0.8103]
[1737657611177,4.16916676,3250.2,3249.4,3.07748]
[1737657611528,3.07684,3250.1,3249.4,3.07748]
[1737657611728,3.07701,3249.9,3249.2,3.07766]
[1737657612054,0.03847008,3249.8,3249.3,3.07756]
[1737657612233,3.07617,3250.8,3249.8,3.07708]
[1737657612578,0.60159852,3251.1,3249.7,3.0772]
[1737657612759,3.07602,3251.0,3250.3,3.07661]
[1737657612954,3.07582,3251.2,3250.5,3.07644]
[1737657613371,3.07588,3251.1,3250.3,3.07662]
[1737657613549,3.0,3251.2,3250.5,3.07643]
[1737657613753,6.07579,3251.2,3250.5,3.07643]
[1737657613962,3.0,3251.2,3250.5,3.07643]
[1737657614269,3.0,3251.2,3250.6,3.07632]
[1737657614472,6.07586,3251.2,3250.3,3.07655]
[1737657614630,3.07605,3251.0,3249.6,3.8142]
[1737657614828,3.07616,3250.8,3250.0,3.07688]
[1737657615380,0.03845834,3251.0,3249.8,3.07707]
[1737657615575,3.07635,3250.6,3249.8,3.07707]
[1737657615874,3.07635,3250.6,3249.7,0.689155]
[1737657615875,3.07635,3250.6,3249.9,3.077]
[1737657617568,3.0,3250.8,3249.8,0.55]
[1737657617764,3.0,3250.8,3250.0,3.07689]
[1737657617765,3.07627,3250.7,3250.0,3.07689]
[1737657618063,3.07607,3250.9,3250.2,3.07666]
[1737657618268,6.07591,3251.1,3250.3,0.0524753]
[1737657618435,6.07591,3251.1,3249.9,0.55]
[1737657618771,6.07591,3251.1,3250.4,3.07653]
[1737657619076,6.07591,3251.1,3250.5,0.0525024]
[1737657621133,3.0,3251.1,3250.5,0.0525024]
[1737657621339,3.07598,3251.0,3250.5,0.0525024]
[1737657621540,3.07622,3250.8,3250.5,0.0525024]
[1737657621782,3.07626,3250.7,3250.5,0.0525024]
[1737657622072,3.11471809,3250.7,3250.1,0.55]
[1737657622540,3.07646,3250.5,3250.2,0.05174548]
[1737657622737,3.11492119,3250.5,3250.2,0.05174548]
[1737657622935,3.11492119,3250.5,3249.8,3.07708]
[1737657623134,3.11492119,3250.5,3249.6,3.89148]
[1737657623135,3.07654,3250.4,3250.3,0.05170549]
[1737657623365,3.0769,3250.1,3249.4,3.07749]
[1737657623583,3.0769,3250.1,3249.5,3.07738]
[1737657623735,3.07617,3250.8,3249.6,3.0773]
[1737657623939,3.07559,3251.5,3249.8,6.15422]
[1737657623940,3.07607,3250.9,3249.8,6.15422]
[1737657624137,3.07607,3250.9,3249.7,0.7867]
[1737657624138,6.07622,3250.8,3250.0,3.07692]
[1737657624441,6.07622,3250.8,3250.1,3.07681]
[1737657624442,3.07628,3250.7,3250.1,3.07681]
[1737657624642,3.07628,3250.7,3250.1,3.12321536]
[1737657624842,3.0,3250.8,3250.1,0.04640536]
[1737657625085,3.0,3250.8,3250.0,3.07689]
[1737657625288,3.0763,3250.7,3250.0,3.07689]
[1737657625455,3.0763,3250.7,3250.1,0.04655911]
[1737657625657,3.07644,3250.6,3250.1,0.04655911]
[1737657625855,3.07644,3250.6,3249.9,3.07695]
[1737657626185,3.0763,3250.7,3250.0,3.12351683]
[1737657627012,3.07682,3250.1,3250.0,0.04666683]
[1737657627215,3.07725,3249.7,3249.0,3.07778]
[1737657627411,3.07725,3249.7,3248.9,0.827]
[1737657627412,3.07747,3249.5,3248.9,0.827]
[1737657627620,3.11594315,3249.5,3249.1,0.04392246]
[1737657627783,3.07747,3249.5,3249.1,0.04392246]
[1737657627983,3.07725,3249.7,3249.0,3.07784]
[1737657628191,3.07725,3249.7,3249.2,0.03918889]
[1737657628512,3.07725,3249.7,3249.3,0.03943775]
[1737657628727,3.07725,3249.7,3249.1,3.07777]
[1737657628874,3.07725,3249.7,3249.4,0.03939773]
[1737657629213,3.07725,3249.7,3248.9,3.90495]
[1737657629422,3.07725,3249.7,3249.5,0.03938603]
[1737657629576,3.07725,3249.7,3249.1,3.0777]
[1737657629767,3.07725,3249.7,3249.6,0.03934602]
[1737657630052,3.07725,3249.7,3249.1,3.0777]
[1737657630201,3.07725,3249.7,3249.6,0.0394247]
[1737657630374,3.07725,3249.7,3249.2,3.07767]
[1737657630574,0.60603263,3249.8,3249.2,3.07767]
[1737657630811,0.60603263,3249.8,3249.3,0.03954475]
[1737657630977,3.68316263,3249.8,3249.3,0.03954475]
[1737657631182,3.68316263,3249.8,3249.2,3.07767]
[1737657631380,3.68316263,3249.8,3249.4,0.03950473]
[1737657631575,3.11570097,3249.7,3249.3,0.03954475]
[1737657631914,0.03847097,3249.7,3248.5,4.0080853]
[1737657632113,3.07775,3249.2,3248.6,3.07822]
[1737657632313,3.11624717,3249.1,3248.6,3.07822]
[1737657632912,3.07788,3249.0,3248.5,0.1657653]
[1737657633081,0.03847935,3248.9,3248.5,0.1657653]
[1737657633277,3.07788,3249.0,3248.5,0.1657653]
[1737657633923,0.03848076,3249.3,3248.5,0.1657653]
[1737657634080,3.07782,3249.1,3248.5,3.2440753]
[1737657634705,3.07782,3249.1,3248.6,0.07016634]
[1737657634925,3.0,3249.3,3248.7,3.07812]
[1737657635207,0.03847692,3249.7,3248.6,0.07016634]
[1737657635408,3.07778,3249.1,3248.8,0.07008432]
[1737657635612,3.07778,3249.1,3248.7,0.07012533]
[1737657635782,3.07778,3249.1,3248.9,0.07004331]
[1737657636000,3.0,3249.4,3248.8,0.07008432]
[1737657636310,0.63088685,3249.3,3248.9,3.14798331]
[1737657638319,3.07741,3249.5,3248.9,3.14798331]
[1737657638320,3.0,3249.5,3248.9,3.14798331]
[1737657638485,0.62183724,3249.4,3249.0,3.07786]
[1737657638684,3.0,3249.5,3249.0,3.07786]
[1737657639297,3.0773,3249.6,3249.0,3.07786]
[1737657639613,0.62698548,3249.5,3249.0,3.07786]
[1737657639976,0.62698548,3249.5,3249.3,3.0775]
[1737657640181,3.0,3250.2,3249.5,3.07736]
[1737657640425,3.07684,3250.1,3249.3,3.07756]
[1737657640620,3.0,3249.9,3249.3,3.07756]
[1737657641004,3.60851576,3250.0,3249.3,3.07756]
[1737657642184,3.07704,3249.9,3249.3,3.07756]
[1737657642385,3.07704,3249.9,3249.1,3.07775]
[1737657642386,3.07723,3249.7,3249.1,3.07775]
[1737657642883,3.07723,3249.7,3249.2,3.07766]
[1737657643086,3.07704,3249.9,3249.2,3.07766]
[1737657643330,3.07711,3249.8,3249.2,3.07766]
[1737657643632,3.07724,3249.7,3249.1,3.07775]
[1737657644132,3.0773,3249.6,3249.1,3.07775]
[1737657646443,3.0773,3249.6,3248.9,6.22584331]
[1737657646769,3.0773,3249.6,3249.1,3.07773]
[1737657647485,3.11577215,3249.6,3249.1,3.07773]
[1737657647645,3.0773,3249.6,3249.1,3.07773]
[1737657648043,6.15432,3249.8,3249.1,6.15543]
[1737657648257,0.60851576,3250.0,3248.9,0.07004331]
[1737657648258,3.68550576,3250.0,3249.3,3.07751]
[1737657648491,0.60851576,3250.0,3249.7,3.07714]
[1737657648651,3.0765,3250.5,3249.9,3.07701]
[1737657648865,0.60807524,3250.3,3249.9,6.15397]
[1737657649070,0.60807524,3250.3,3250.0,3.1469834]
[1737657649485,0.60807524,3250.3,3250.0,0.0700934]
[1737657649794,0.60807524,3250.3,3249.7,3.07716]
[1737657649795,0.60807524,3250.3,3249.9,3.07701]
[1737657649991,0.60807524,3250.3,3250.1,0.06968005]
[1737657650295,3.07628,3250.7,3250.2,3.14621072]
[1737657650496,3.07628,3250.7,3250.2,0.06948072]
[1737657650852,3.07637,3250.6,3250.0,3.07683]
[1737657651052,3.07637,3250.6,3250.3,0.06937426]
[1737657651251,3.07637,3250.6,3250.0,3.07683]
[1737657651497,3.07637,3250.6,3249.8,3.07707]
[1737657651498,3.07644,3250.5,3250.4,0.06911298]
[1737657651699,3.07663,3250.4,3249.8,3.07707]
[1737657651903,3.07667,3250.3,3249.9,0.06943762]
[1737657652056,3.07667,3250.3,3249.6,3.07725]
[1737657652250,3.07667,3250.3,3249.7,0.06946822]
[1737657652624,3.07683,3250.1,3249.7,0.06946822]
[1737657652785,3.11543743,3250.0,3249.7,0.06946822]
[1737657652989,3.07706,3249.9,3249.4,3.85132]
[1737657653156,3.07706,3249.9,3249.8,0.0695597]
[1737657653357,3.07706,3249.9,3249.2,3.07762]
[1737657653358,3.07717,3249.8,3249.2,3.07762]
[1737657653557,0.45702279,3250.3,3248.9,0.07004331]
[1737657653558,3.07748,3249.5,3248.9,3.14795331]
[1737657653758,3.11602401,3249.4,3248.9,0.07004331]
[1737657654063,3.07734,3249.6,3249.0,3.07784]
[1737657654964,3.07683,3250.1,3249.4,3.07742]
[1737657655171,3.07683,3250.1,3249.4,3.85932]
[1737657655172,3.07701,3250.0,3249.4,3.85932]
[1737657655460,3.6904231,3250.0,3249.4,3.85932]
[1737657655966,3.07675,3250.2,3249.4,3.85935]
[1737657656167,0.60159538,3250.0,3249.4,3.85935]
[1737657656414,3.67856538,3250.0,3249.5,3.07739]
[1737657657079,3.07669,3250.3,3249.6,3.07729]
[1737657657080,3.07679,3250.2,3249.6,3.07729]
[1737657657286,6.1534,3250.3,3249.7,3.07716]
[1737657657626,0.62055296,3250.2,3249.7,3.07716]
[1737657658015,3.69728296,3250.2,3249.7,3.07716]
[1737657658200,0.62055296,3250.2,3249.7,3.07716]
[1737657658571,3.07647,3250.5,3250.0,3.07686]
[1737657658771,3.07641,3250.6,3250.0,6.15373]
[1737657659003,0.62750818,3250.5,3250.0,6.15373]
[1737657659216,0.62750818,3250.5,3250.0,3.07686]
[1737657659787,3.70398818,3250.5,3250.0,3.07686]
[1737657659988,0.62750818,3250.5,3250.0,3.07686]
[1737657660308,0.62750818,3250.5,3250.1,3.0768]
[1737657660508,0.62750818,3250.5,3250.0,3.07686]
[1737657661485,3.48918942,3251.6,3250.1,0.7577]
[1737657661721,3.07615,3250.9,3250.3,6.15315]
[1737657662015,3.07615,3250.9,3250.3,3.07657]
[1737657662314,3.07619,3250.8,3250.3,3.07657]
[1737657662524,3.69651822,3250.8,3250.3,3.07657]
[1737657663069,3.69651822,3250.8,3250.4,0.0692351]
[1737657663503,3.69651822,3250.8,3250.1,3.83451]
[1737657663706,3.69651822,3250.8,3250.2,0.06931703]
[1737657664330,3.69651822,3250.8,3250.3,3.07662]
[1737657664641,3.69651822,3250.8,3250.4,0.0692351]
[1737657665411,3.07626,3250.7,3250.4,0.0692351]
[1737657665927,0.03845874,3250.6,3250.5,0.06919414]
[1737657666129,3.11480874,3250.6,3249.9,3.077]
[1737657666334,3.07665,3250.3,3250.0,0.06941779]
[1737657666504,3.07665,3250.3,3249.7,3.07712]
[1737657666841,3.07683,3250.1,3249.8,0.06950317]
[1737657667201,3.07669,3250.3,3249.7,3.07718]
[1737657667405,3.07637,3250.6,3250.0,3.0769]
[1737657667726,3.07637,3250.6,3250.1,0.06938023]
[1737657667926,3.0765,3250.5,3250.1,0.06938023]
[1737657668555,3.07645,3250.5,3250.1,0.06938023]
[1737657668936,3.69650822,3250.8,3250.1,0.06938023]
[1737657669251,3.69650822,3250.8,3250.2,3.90602]
[1737657669412,3.69650822,3250.8,3250.2,3.90595]
[1737657669612,3.69650822,3250.8,3250.3,0.06928692]
[1737657669951,3.69650822,3250.8,3250.3,3.14590692]
[1737657670177,3.07631,3250.7,3250.3,0.06928692]
[1737657670513,3.07637,3250.6,3250.3,0.06928692]
[1737657670912,3.07637,3250.6,3250.1,0.7588]
[1737657671108,3.07637,3250.6,3250.2,0.06927155]
[1737657671109,3.07645,3250.5,3250.2,0.06927155]
[1737657673761,0.62032822,3250.8,3250.5,3.07643]
[1737657673963,3.07593,3251.1,3250.6,3.07634]
[1737657674261,3.07593,3251.1,3250.6,3.14544768]
[1737657674560,0.61695154,3251.0,3250.6,3.14544768]
[1737657674762,0.61695154,3251.0,3250.6,6.22178768]
[1737657674965,3.07555,3251.5,3250.9,3.07607]
[1737657675271,3.07484,3252.2,3251.4,3.07551]
[1737657675478,0.60882809,3251.8,3251.5,3.07547]
[1737657675781,0.60882809,3251.8,3251.5,0.06834211]
[1737657675929,3.07484,3252.2,3251.5,3.14376211]
[1737657675930,6.07496,3252.1,3251.5,3.14376211]
[1737657676125,6.14977,3252.2,3251.6,3.07538]
[1737657676330,0.61707462,3251.9,3251.7,0.06810902]
[1737657676527,3.07484,3252.2,3251.7,3.14338902]
[1737657677467,3.69257472,3252.2,3251.7,0.06810902]
[1737657677772,3.69257472,3252.2,3251.5,3.07549]
[1737657678069,6.76748472,3252.2,3251.8,0.06840926]
[1737657678261,3.07493,3252.1,3251.5,3.07549]
[1737657678453,3.07493,3252.1,3251.9,0.06836833]
[1737657678774,3.07493,3252.1,3252.0,0.06832741]
[1737657678969,3.54114538,3252.1,3252.0,0.06832741]
[1737657679173,3.0755,3251.5,3251.1,0.7622]
[1737657679371,3.07566,3251.4,3251.1,0.7622]
[1737657679673,3.07569,3251.3,3251.2,0.06875422]
[1737657680175,3.07569,3251.3,3250.7,0.7948]
[1737657680176,3.07592,3251.1,3250.7,0.7948]
[1737657680580,3.07592,3251.1,3250.8,0.06852452]
[1737657680875,3.07603,3251.0,3250.8,0.06852452]
[1737657681089,3.07618,3250.8,3250.4,0.7525]
[1737657681374,0.03845576,3250.7,3250.4,0.7525]
[1737657681932,0.03845636,3250.9,3250.4,0.7525]
[1737657682449,0.03845636,3250.9,3250.4,3.82903]
[1737657682651,3.11452636,3250.9,3250.4,0.7525]
[1737657682847,3.11460636,3250.9,3250.2,3.07667]
[1737657683082,3.07617,3250.8,3250.2,3.07667]
[1737657683252,3.07626,3250.7,3250.2,3.07667]
[1737657683785,0.61072129,3250.8,3250.3,3.07655]
[1737657683948,0.61072129,3250.8,3250.0,0.7733]
[1737657683949,0.64917946,3250.8,3250.0,0.7733]
[1737657684537,3.68689129,3250.8,3250.2,3.07667]
[1737657684977,0.61072129,3250.8,3250.2,3.07667]
[1737657685284,0.61072129,3250.8,3250.3,3.07658]
[1737657685432,3.07592,3251.1,3250.4,3.07653]
[1737657685637,3.07592,3251.1,3250.6,3.07635]
[1737657685864,0.61824771,3250.9,3250.4,3.07653]
[1737657686063,0.61824771,3250.9,3250.5,3.07641]
[1737657686388,0.61824771,3250.9,3250.4,3.07647]
[1737657687577,0.61824771,3250.9,3250.5,3.07644]
[1737657690286,0.61824771,3250.9,3250.3,3.07655]
[1737657690493,3.0764,3250.6,3250.0,0.7733]
[1737657690673,1.0460205,3250.9,3250.0,0.7733]
[1737657690988,3.07633,3250.7,3250.0,3.85021]
[1737657691765,3.07645,3250.5,3250.0,3.85021]
[1737657692288,3.07633,3250.7,3250.1,3.07681]
[1737657692583,3.69435771,3250.9,3250.1,3.07681]
[1737657692584,3.69435771,3250.9,3250.2,3.07672]
[1737657693270,3.07626,3250.7,3250.3,0.06870799]
[1737657693471,3.07636,3250.6,3250.3,0.06870799]
[1737657693672,3.07626,3250.7,3250.1,3.07675]
[1737657693843,3.07626,3250.7,3250.4,0.06854089]
[1737657694046,0.61824771,3250.9,3250.0,0.7733]
[1737657694393,3.0765,3250.5,3250.0,3.85018]
[1737657695744,3.0765,3250.5,3250.0,0.7733]
[1737657695993,3.0765,3250.5,3250.0,3.8502]
[1737657696293,3.0762,3250.8,3250.2,3.07664]
[1737657696447,0.61824771,3250.9,3250.4,3.07652]
[1737657696647,3.69431771,3250.9,3250.4,3.07652]
[1737657697083,3.07617,3250.8,3250.2,3.07664]
[1737657697388,3.07617,3250.8,3250.2,6.15331]
[1737657697574,3.07617,3250.8,3250.2,3.07664]
[1737657697773,3.07617,3250.8,3250.3,3.07662]
[1737657697950,3.07617,3250.8,3250.2,6.15331]
[1737657698150,3.07626,3250.7,3250.2,3.07664]
[1737657698576,3.07646,3250.5,3250.0,0.7733]
[1737657699003,3.11492086,3250.5,3250.0,0.7733]
[1737657699293,3.0767,3250.3,3249.7,3.89269]
[1737657699600,3.07678,3250.2,3249.7,0.8155]
[1737657699750,3.07678,3250.2,3249.7,3.89265]
[1737657701920,3.07734,3249.6,3249.1,0.8324]
[1737657702069,3.07734,3249.6,3249.1,3.91012]
[1737657702070,0.03846989,3249.5,3249.1,3.91012]
[1737657702270,3.07734,3249.6,3249.1,3.91012]
[1737657702585,0.03846978,3249.7,3249.2,3.07767]
[1737657702586,0.03846952,3249.7,3249.2,3.07767]
[1737657702781,3.07721,3249.7,3249.2,3.07767]
[1737657703089,0.61471903,3249.8,3249.2,3.07767]
[1737657703269,3.69187903,3249.8,3249.2,3.07767]
[1737657703471,3.73034788,3249.8,3249.2,3.07767]
[1737657703784,3.07721,3249.7,3249.1,3.91014]
[1737657704215,3.07721,3249.7,3249.2,3.07767]
[1737657705264,0.61471903,3249.8,3249.4,3.07746]
[1737657705923,0.61471903,3249.8,3249.5,3.07738]
[1737657706082,3.07697,3250.0,3249.5,3.07738]
[1737657706285,3.0768,3250.2,3249.6,3.07721]
[1737657706486,3.07683,3250.1,3249.6,3.07721]
[1737657707218,3.68003498,3250.1,3249.6,3.07721]
[1737657707801,3.07698,3250.0,3249.3,3.07753]
[1737657707983,3.07718,3249.8,3249.3,3.07753]
[1737657708184,3.07718,3249.8,3249.4,0.06984685]
[1737657709300,6.15396,3250.0,3249.4,0.06984685]
[1737657709469,3.07697,3250.0,3249.4,0.06984685]
[1737657709876,3.07701,3249.9,3249.4,0.06984685]
[1737657710386,3.07697,3250.0,3249.4,0.06984685]
[1737657710387,3.07714,3249.8,3249.4,0.06984685]
[1737657712318,3.07703,3249.9,3249.4,3.14733685]
[1737657712619,3.07697,3250.0,3249.5,3.07737]
[1737657712775,3.07697,3250.0,3249.5,3.14744119]
[1737657714217,3.07703,3249.9,3249.5,0.07007119]
[1737657714420,3.07703,3249.9,3249.3,3.07749]
[1737657714625,6.15398,3250.0,3249.6,0.0700302]
[1737657714928,3.07697,3250.0,3249.4,3.07744]
[1737657715127,3.07697,3250.0,3249.7,0.06998921]
[1737657715421,3.07697,3250.0,3249.4,3.07744]
[1737657715595,3.07697,3250.0,3249.8,0.06994823]
[1737657715777,3.07697,3250.0,3249.5,3.07734]
[1737657715977,0.60320498,3250.1,3249.9,0.06980146]
[1737657716420,0.60320498,3250.1,3250.0,0.06977243]
[1737657716805,0.60320498,3250.1,3249.7,3.07715]
[1737657717001,3.68003498,3250.1,3250.0,0.06972265]
[1737657717186,0.60320498,3250.1,3250.0,0.06972265]
[1737657717725,0.60320498,3250.1,3249.6,3.86864]
[1737657718020,3.7184911,3250.1,3250.0,0.06972265]
[1737657718218,3.7184911,3250.1,3249.6,0.7914]
[1737657718219,3.7184911,3250.1,3249.6,3.86868]
[1737657718517,3.7184911,3250.1,3250.0,0.06978751]
[1737657718720,3.7184911,3250.1,3249.6,3.86868]
[1737657718921,3.7184911,3250.1,3250.0,0.06979179]
[1737657719085,3.07704,3249.9,3249.4,3.07743]
[1737657720224,3.07704,3249.9,3249.4,3.07746]
[1737657720854,3.07704,3249.9,3249.4,3.07744]
[1737657721016,3.68005498,3250.1,3249.4,3.07744]
[1737657721212,3.07697,3250.0,3249.4,6.15486]
[1737657721553,3.07697,3250.0,3249.4,3.07742]
[1737657721726,3.68005498,3250.1,3249.6,3.07728]
[1737657722552,3.07702,3249.9,3249.4,3.07742]
[1737657722752,3.07749,3249.5,3249.2,0.8]
[1737657723056,3.49170852,3250.0,3248.9,3.14791331]
[1737657723057,3.11597235,3249.4,3248.9,0.89994331]
[1737657723251,6.19354462,3249.4,3249.3,0.07011038]
[1737657723556,6.19354462,3249.4,3248.9,0.89994331]
[1737657723557,3.11597462,3249.4,3248.9,0.89994331]
[1737657724070,3.11597462,3249.4,3249.0,0.07023338]
[1737657724071,3.0775,3249.4,3249.0,0.07023338]
[1737657724378,3.07733,3249.6,3249.0,6.22595338]
[1737657724540,6.15472,3249.6,3249.0,3.14809338]
[1737657724744,3.07733,3249.6,3249.0,3.14809338]
[1737657725166,3.07733,3249.6,3249.0,6.22590338]
[1737657725351,3.07733,3249.6,3249.0,3.14804338]
[1737657725668,6.15472,3249.6,3249.0,3.14804338]
[1737657725867,3.07749,3249.4,3249.0,0.07023338]
[1737657726242,0.61738958,3249.3,3249.0,0.07023338]
[1737657726447,0.61738958,3249.3,3249.0,3.14807338]
[1737657727157,0.61738958,3249.3,3249.0,0.07023338]
[1737657728666,3.69505958,3249.3,3249.0,0.07023338]
[1737657728967,3.07775,3249.2,3249.0,0.07023338]
[1737657730176,6.15552,3249.2,3249.0,0.07023338]
[1737657730466,3.07777,3249.1,3249.0,0.07023338]
[1737657730830,5.9596615,3249.1,3249.0,0.07023338]
[1737657731033,5.9596615,3249.1,3248.9,0.07004331]
[1737657731231,3.11635087,3249.0,3248.9,0.07004331]
[1737657732538,3.11635167,3249.0,3248.9,0.07004331]
[1737657732785,3.07787,3249.0,3248.9,0.07004331]
[1737657733372,3.11635168,3249.0,3248.9,0.07004331]
[1737657737062,3.66635168,3249.0,3248.9,0.07004331]
[1737657738279,6.66635168,3249.0,3248.9,0.07004331]
[1737657738580,6.62787,3249.0,3248.9,0.07004331]
[1737657739102,3.62824,3248.6,3248.5,0.1657653]
[1737657739299,6.5101315,3248.6,3248.5,0.1657653]
[1737657739808,6.93793197,3248.6,3248.5,0.1657653]
[1737657743013,7.55259368,3248.6,3248.5,0.1657653]
[1737657745767,10.55259368,3248.6,3248.5,0.1657653]
[1737657748332,3.07968,3247.1,3246.4,0.7577]
[1737657748514,3.07977,3247.0,3246.4,1.141515]
[1737657748684,3.11826842,3247.0,3246.5,0.06604317]
[1737657748882,3.07968,3247.1,3246.5,0.06604317]
[1737657749109,3.07979,3247.0,3246.5,0.06604317]
[1737657749313,3.08012,3246.7,3246.5,0.06604317]
[1737657749811,3.70462976,3246.9,3246.5,0.06604317]
[1737657749977,6.78455976,3246.9,3246.5,0.06604317]
[1737657750190,0.62474976,3246.9,3246.5,0.06604317]
[1737657750391,3.08001,3246.8,3246.5,0.06604317]
[1737657751005,3.07981,3247.0,3246.5,0.06604317]
[1737657751327,6.15963,3247.0,3246.5,0.06604317]
[1737657752093,3.07986,3246.9,3246.5,0.06604317]
[1737657752422,3.08001,3246.8,3246.5,0.06604317]
[1737657753330,3.07986,3246.9,3246.5,0.06604317]
[1737657753815,3.08005,3246.7,3246.5,0.06604317]
[1737657754915,3.07986,3246.9,3246.5,0.06604317]
[1737657756021,3.07986,3246.9,3246.6,0.797]
[1737657756222,0.60436209,3247.0,3246.6,0.797]
[1737657756425,0.60436209,3247.0,3246.7,0.06645989]